bitfinex/quotes_SOLUSD_20250718
["timestamp","ask_amount","ask_price","bid_price","bid_amount"]
[1752856325509,59.88744899,178.15,178.14,1e-08]
[1752856327302,30.26744899,178.15,178.14,1e-08]
[1752856327627,59.88744899,178.15,178.14,1e-08]
[1752856328415,52.73793123,178.15,178.14,1e-08]
[1752856328612,59.88744899,178.15,178.14,1e-08]
[1752856330340,16.78468397,178.12,178.11,0.03]
[1752856330526,59.1683944,178.12,178.11,0.03]
[1752856331228,52.01887664,178.12,178.11,0.03]
[1752856331533,52.01887664,178.12,178.11,0.72]
[1752856331534,46.40468397,178.12,178.11,0.72]
[1752856331724,46.40468397,178.12,178.11,7.86951776]
[1752856332226,16.78468397,178.12,178.11,7.86951776]
[1752856332430,0.06,178.15,178.11,15.01903552]
[1752856332639,0.06,178.15,178.14,7.14951776]
[1752856332841,46.46468397,178.15,178.14,7.14951776]
[1752856333012,46.46468397,178.15,178.14,7.83951776]
[1752856333216,46.46468397,178.15,178.14,0.69]
[1752856333440,46.46468397,178.15,178.12,0.69]
[1752856333642,16.78468397,178.14,178.11,0.03]
[1752856333937,29.62,178.13,178.12,7.14951776]
[1752856334131,29.62,178.13,178.12,7.83951776]
[1752856335154,46.40468397,178.13,178.12,7.83951776]
[1752856335849,52.01856147,178.13,178.12,7.83951776]
[1752856336145,46.40468397,178.13,178.12,7.83951776]
[1752856338012,52.01856147,178.13,178.12,7.83951776]
[1752856338212,46.40468397,178.13,178.12,7.83951776]
[1752856339244,136.10468397,178.13,178.12,7.83951776]
[1752856339441,106.48468397,178.13,178.12,7.83951776]
[1752856339621,89.7,178.13,178.12,7.83951776]
[1752856339812,89.7,178.13,178.12,13.45371043]
[1752856340013,0.06,178.15,178.12,13.45371043]
[1752856340319,29.66,178.15,178.14,7.14951776]
[1752856340642,29.66,178.15,178.14,7.86951776]
[1752856341019,29.66,178.15,178.14,0.72]
[1752856341216,46.44468397,178.15,178.11,0.03]
[1752856341538,46.44468397,178.15,178.14,7.14951776]
[1752856341741,16.78468397,178.14,178.12,0.72]
[1752856341928,29.6,178.13,178.11,0.03]
[1752856342521,46.38468397,178.13,178.12,0.72]
[1752856343037,46.38468397,178.13,178.12,7.86951776]
[1752856343743,29.6,178.13,178.12,7.86951776]
[1752856343929,29.66,178.15,178.12,7.86951776]
[1752856344117,29.66,178.15,178.14,7.14951776]
[1752856344324,29.66,178.15,178.14,7.86951776]
[1752856345039,52.05793123,178.15,178.14,7.86951776]
[1752856345294,16.78468397,178.14,178.12,0.72]
[1752856345432,16.78468397,178.14,178.11,0.03]
[1752856345433,29.6,178.13,178.11,0.03]
[1752856345818,29.6,178.13,178.12,0.72]
[1752856346770,29.6,178.13,178.12,7.86951776]
[1752856347342,106.48468397,178.12,178.11,0.03]
[1752856347643,114.33420173,178.12,178.11,0.03]
[1752856348357,42.78468397,178.11,178.1,0.03]
[1752856348534,79.53420173,178.11,178.1,0.03]
[1752856349081,72.38468397,178.11,178.1,0.03]
[1752856349283,77.99919185,178.11,178.1,0.03]
[1752856349576,80.79652224,178.11,178.1,0.03]
[1752856349745,51.19652224,178.11,178.1,0.03]
[1752856349947,77.99919185,178.11,178.1,7.17951776]
[1752856350488,77.99919185,178.11,178.1,0.03]
[1752856350656,48.39919185,178.11,178.1,0.03]
[1752856351171,77.99919185,178.11,178.1,11.68506314]
[1752856351352,48.39919185,178.11,178.1,11.68506314]
[1752856351547,48.39919185,178.11,178.1,0.03]
[1752856351548,77.99919185,178.11,178.1,0.03]
[1752856352472,48.39919185,178.11,178.1,11.68506314]
[1752856352783,72.38468397,178.11,178.1,12.40506314]
[1752856352982,77.99919185,178.11,178.1,12.40506314]
[1752856353473,48.39919185,178.11,178.1,12.40506314]
[1752856353674,77.99919185,178.11,178.1,0.75]
[1752856353866,77.99919185,178.11,178.1,12.40506314]
[1752856354044,77.99919185,178.11,178.1,11.68506314]
[1752856355098,77.99919185,178.11,178.1,0.03]
[1752856355457,78.69919185,178.11,178.1,0.03]
[1752856355961,77.99919185,178.11,178.1,0.03]
[1752856356264,78.69919185,178.11,178.1,0.03]
[1752856356690,77.99919185,178.11,178.1,0.03]
[1752856357194,78.05919185,178.11,178.1,0.03]
[1752856357981,78.75919185,178.11,178.1,0.03]
[1752856359805,90.41425499,178.11,178.1,0.03]
[1752856360102,90.41425499,178.11,178.09,0.03]
[1752856360103,112.0995071,178.1,178.09,0.03]
[1752856360804,106.48468397,178.1,178.09,11.68506314]
[1752856361003,0.06,178.11,178.09,24.06012628]
[1752856361173,0.06,178.11,178.1,12.37506314]
[1752856362006,0.06,178.11,178.1,17.98988627]
[1752856363079,0.06,178.11,178.1,24.08198627]
[1752856363279,0.06,178.15,178.1,24.64346858]
[1752856363484,0.06,178.15,178.14,11.65506314]
[1752856364177,0.06,178.15,178.14,17.9886255]
[1752856365206,29.58,178.18,178.14,19.6208255]
[1752856365386,0.06,178.19,178.17,11.65506314]
[1752856365576,0.06,178.19,178.18,23.31012628]
[1752856365998,0.06,178.29,178.18,29.59242844]
[1752856366208,46.36468397,178.28,178.27,11.65506314]
[1752856366385,29.58,178.28,178.25,0.67]
[1752856366585,4.18956001,178.27,178.26,12.32506314]
[1752856366807,20.97424398,178.27,178.26,12.32506314]
[1752856367186,20.97424398,178.27,178.26,11.65506314]
[1752856367380,16.78468397,178.26,178.21,0.67]
[1752856367590,16.78468397,178.24,178.23,11.65506314]
[1752856368082,16.78468397,178.24,178.21,0.67]
[1752856368288,16.78468397,178.24,178.23,11.65506314]
[1752856368721,16.78468397,178.24,178.22,11.65506314]
[1752856368906,16.78468397,178.24,178.23,11.65506314]
[1752856369115,46.36468397,178.24,178.23,11.65506314]
[1752856369418,16.78468397,178.25,178.23,12.32506314]
[1752856369724,29.58,178.24,178.19,26.0]
[1752856370211,29.58,178.24,178.2,0.67]
[1752856370809,46.36468397,178.24,178.23,11.65506314]
[1752856371305,46.36468397,178.24,178.23,12.32506314]
[1752856371987,29.58,178.24,178.23,12.32506314]
[1752856372187,16.78468397,178.28,178.23,12.32506314]
[1752856372407,46.34468397,178.27,178.26,11.65506314]
[1752856372608,46.34468397,178.27,178.26,12.32506314]
[1752856372806,0.06,178.29,178.26,12.32506314]
[1752856373101,0.06,178.29,178.28,11.65506314]
[1752856373493,0.06,178.29,178.28,12.32506314]
[1752856374103,0.06,178.29,178.28,11.65506314]
[1752856374304,0.06,178.29,178.28,12.32506314]
[1752856375389,0.06,178.29,178.28,17.93421727]
[1752856375594,0.06,178.29,178.28,12.32506314]
[1752856376097,0.06,178.29,178.28,17.93421727]
[1752856377118,16.78468397,178.32,178.28,55.58928041]
[1752856377406,0.06,178.37,178.36,26.0]
[1752856377608,0.06,178.37,178.36,11.65506314]
[1752856377908,16.78468397,178.36,178.3,0.67]
[1752856378097,16.78468397,178.36,178.3,12.32506314]
[1752856378304,16.78468397,178.34,178.3,12.32506314]
[1752856378495,16.78468397,178.32,178.31,11.65506314]
[1752856378905,16.78468397,178.32,178.3,0.67]
[1752856379109,16.78468397,178.32,178.27,7.2134]
[1752856379419,16.78468397,178.3,178.27,12.32506314]
[1752856379594,29.54,178.29,178.27,12.32506314]
[1752856379996,46.32468397,178.29,178.28,11.65506314]
[1752856380295,16.78468397,178.28,178.27,11.65506314]
[1752856380694,16.78468397,178.28,178.24,11.65506314]
[1752856380892,28.43974711,178.28,178.19,6.1378]
[1752856381091,28.43974711,178.28,178.2,0.67]
[1752856381092,28.43974711,178.26,178.2,0.67]
[1752856381302,16.78468397,178.24,178.21,11.65506314]
[1752856381488,16.78468397,178.24,178.21,12.32506314]
[1752856381689,16.78468397,178.24,178.18,0.67]
[1752856381690,16.78468397,178.22,178.18,0.67]
[1752856381914,16.78468397,178.2,178.18,12.32506314]
[1752856382114,16.78468397,178.2,178.18,11.65506314]
[1752856382302,16.78468397,178.2,178.16,0.67]
[1752856382621,16.78468397,178.2,178.18,11.65506314]
[1752856383820,16.78468397,178.2,178.17,11.65506314]
[1752856384020,16.78468397,178.2,178.17,12.32506314]
[1752856384518,16.78468397,178.2,178.18,0.67]
[1752856384821,16.78468397,178.2,178.18,12.32506314]
[1752856385412,16.78468397,178.2,178.18,5.61228184]
[1752856385722,16.78468397,178.2,178.19,12.32506314]
[1752856386208,6.29012548,178.25,178.19,12.32506314]
[1752856386414,46.32468397,178.24,178.2,11.65506314]
[1752856386613,11.65506314,178.26,178.21,12.32506314]
[1752856386614,26.0,178.26,178.21,12.32506314]
[1752856386808,46.32468397,178.25,178.22,0.67]
[1752856387121,46.32468397,178.25,178.19,0.67]
[1752856387325,58.65974711,178.25,178.19,12.32506314]
[1752856387510,5.61041292,178.24,178.2,11.65506314]
[1752856387710,6.29041292,178.24,178.2,11.65506314]
[1752856388024,51.93485582,178.25,178.21,11.65506314]
[1752856388319,46.32468397,178.25,178.21,11.65506314]
[1752856388529,16.78468397,178.25,178.21,12.32506314]
[1752856388709,16.78468397,178.23,178.21,12.32506314]
[1752856389125,16.78468397,178.23,178.22,0.67]
[1752856389426,46.32468397,178.23,178.22,0.67]
[1752856389607,46.32468397,178.23,178.21,11.65506314]
[1752856390344,16.78468397,178.22,178.17,26.0]
[1752856390504,16.78468397,178.22,178.2,11.65506314]
[1752856390816,29.54,178.21,178.2,11.65506314]
[1752856391197,29.54,178.21,178.2,12.32506314]
[1752856391398,46.32468397,178.21,178.2,12.32506314]
[1752856391698,16.78468397,178.21,178.2,12.32506314]
[1752856392010,16.78468397,178.21,178.2,0.67]
[1752856392205,16.78468397,178.21,178.2,11.65506314]
[1752856392405,16.78468397,178.21,178.2,12.32506314]
[1752856393426,16.78468397,178.21,178.2,17.93673541]
[1752856393733,16.78468397,178.21,178.2,12.32506314]
[1752856394024,16.78468397,178.26,178.2,17.93664672]
[1752856394234,16.78468397,178.24,178.23,11.65506314]
[1752856395422,16.78468397,178.24,178.23,12.32506314]
[1752856395623,16.78468397,178.28,178.23,12.32506314]
[1752856395932,16.78468397,178.28,178.27,11.65506314]
[1752856396113,46.32468397,178.28,178.27,11.65506314]
[1752856397203,16.78468397,178.27,178.26,11.65506314]
[1752856397919,16.78468397,178.27,178.22,0.71]
[1752856398136,16.78468397,178.25,178.24,11.65506314]
[1752856398514,17.43468397,178.25,178.24,11.65506314]
[1752856398837,16.78468397,178.25,178.24,11.65506314]
[1752856399834,16.78468397,178.25,178.21,0.71]
[1752856400038,16.78468397,178.23,178.21,0.71]
[1752856400208,29.54,178.22,178.21,0.71]
[1752856400818,16.78468397,178.21,178.19,0.71]
[1752856401134,16.78468397,178.21,178.2,0.71]
[1752856401433,16.78468397,178.21,178.2,12.36506314]
[1752856401744,16.78468397,178.21,178.2,11.65506314]
[1752856403140,16.78468397,178.21,178.2,12.36506314]
[1752856403508,16.78468397,178.23,178.2,12.36506314]
[1752856403717,16.78468397,178.22,178.21,11.65506314]
[1752856403922,46.30468397,178.22,178.21,11.65506314]
[1752856404325,16.78468397,178.21,178.19,11.65506314]
[1752856404536,46.30468397,178.2,178.19,11.65506314]
[1752856408146,46.30468397,178.2,178.18,11.65506314]
[1752856408515,46.30468397,178.2,178.19,11.65506314]
[1752856408919,16.78468397,178.2,178.19,12.36506314]
[1752856409537,29.52,178.2,178.14,32.242]
[1752856409845,16.78468397,178.19,178.16,11.65506314]
[1752856410029,16.78468397,178.2,178.18,11.65506314]
[1752856410227,16.78468397,178.2,178.14,37.85551294]
[1752856410228,16.78468397,178.18,178.17,11.65506314]
[1752856410432,16.78468397,178.18,178.14,6.242]
[1752856410433,16.78468397,178.18,178.14,0.74]
[1752856410648,16.78468397,178.16,178.15,11.65506314]
[1752856410820,16.78468397,178.16,178.15,12.36506314]
[1752856411023,16.78468397,178.17,178.15,12.36506314]
[1752856411226,16.78468397,178.17,178.16,11.65506314]
[1752856411425,16.78468397,178.17,178.14,0.74]
[1752856411649,16.78468397,178.17,178.16,11.65506314]
[1752856412446,16.78468397,178.17,178.16,12.36506314]
[1752856412830,29.52,178.19,178.16,12.36506314]
[1752856413041,16.78468397,178.23,178.18,11.65506314]
[1752856413247,16.78468397,178.24,178.22,11.65506314]
[1752856413422,16.78468397,178.24,178.23,11.65506314]
[1752856413624,16.78468397,178.26,178.23,11.65506314]
[1752856413850,46.30468397,178.24,178.23,11.65506314]
[1752856416355,16.78468397,178.24,178.23,12.36506314]
[1752856416556,16.78468397,178.24,178.23,0.71]
[1752856416846,16.78468397,178.24,178.16,6.77129321]
[1752856416847,16.78468397,178.23,178.22,11.65506314]
[1752856417056,46.30468397,178.23,178.22,11.65506314]
[1752856417566,46.95468397,178.23,178.22,11.65506314]
[1752856418841,46.95468397,178.23,178.18,0.71]
[1752856418842,16.78468397,178.22,178.2,11.65506314]
[1752856419046,29.52,178.21,178.2,11.65506314]
[1752856419250,16.78468397,178.2,178.18,0.71]
[1752856419461,16.78468397,178.2,178.19,11.65506314]
[1752856419661,16.78468397,178.2,178.19,12.36506314]
[1752856420580,16.78468397,178.2,178.19,11.65506314]
[1752856421031,16.78468397,178.2,178.19,7.85216174]
[1752856421978,29.52,178.21,178.19,7.85216174]
[1752856422179,29.52,178.22,178.2,7.85216174]
[1752856422469,16.78468397,178.22,178.21,7.85216174]
[1752856422843,16.78468397,178.25,178.21,7.14216174]
[1752856423037,46.30468397,178.24,178.23,7.14216174]
[1752856423543,16.78468397,178.23,178.22,7.14216174]
[1752856423936,46.30468397,178.23,178.22,7.14216174]
[1752856424145,52.56541168,178.23,178.21,7.14216174]
[1752856424349,0.65,178.22,178.19,7.14216174]
[1752856424545,46.95468397,178.21,178.17,7.14216174]
[1752856424766,16.78468397,178.19,178.17,7.14216174]
[1752856424980,29.52,178.18,178.17,7.14216174]
[1752856426168,29.5,178.18,178.17,7.86216174]
[1752856426674,16.78468397,178.18,178.17,7.86216174]
[1752856427677,16.78468397,178.16,178.14,0.03]
[1752856427848,51.89793123,178.15,178.14,0.03]
[1752856428047,52.61793123,178.15,178.14,0.03]
[1752856428274,42.78468397,178.13,178.12,0.03]
[1752856428498,46.28468397,178.13,178.12,0.03]
[1752856428649,73.00468397,178.13,178.12,0.03]
[1752856428855,47.00468397,178.13,178.12,0.03]
[1752856429859,52.61856147,178.13,178.12,0.03]
[1752856430053,78.61856147,178.13,178.12,0.03]
[1752856430253,42.78468397,178.13,178.12,11.68167991]
[1752856430580,46.30468397,178.13,178.12,11.68167991]
[1752856431698,52.63856147,178.13,178.12,0.03]
[1752856432203,23.11856147,178.13,178.12,0.03]
[1752856432504,52.63856147,178.13,178.12,0.03]
[1752856432998,78.63856147,178.13,178.12,0.03]
[1752856433198,90.29024138,178.13,178.12,0.03]
[1752856433916,78.63856147,178.13,178.12,0.03]
[1752856434422,16.78468397,178.13,178.12,0.03]
[1752856434624,16.78468397,178.13,178.12,11.68167991]
[1752856434905,29.52,178.13,178.12,12.40167991]
[1752856435430,46.30468397,178.13,178.12,12.40167991]
[1752856436201,46.30468397,178.13,178.12,11.68167991]
[1752856436922,46.30468397,178.13,178.12,0.03]
[1752856437090,46.30468397,178.13,178.12,11.68167991]
[1752856438579,51.91856147,178.13,178.12,11.68167991]
[1752856439801,22.39856147,178.13,178.12,11.68167991]
[1752856440002,51.91856147,178.13,178.12,11.68167991]
[1752856440625,51.91856147,178.13,178.12,0.03]
[1752856440800,16.78468397,178.13,178.12,11.68167991]
[1752856441004,46.30468397,178.13,178.12,12.40167991]
[1752856441199,46.30468397,178.13,178.12,11.68167991]
[1752856442232,46.30468397,178.13,178.12,12.40167991]
[1752856442807,16.78468397,178.13,178.12,18.01587258]
[1752856443004,16.78468397,178.16,178.12,18.01587258]
[1752856443227,16.78468397,178.16,178.15,11.65167991]
[1752856443522,16.78468397,178.16,178.13,0.72]
[1752856443739,16.78468397,178.14,178.12,0.03]
[1752856444025,46.30468397,178.14,178.13,11.65167991]
[1752856444424,52.63824633,178.14,178.13,11.65167991]
[1752856444799,46.30468397,178.14,178.13,11.65167991]
[1752856445126,46.30468397,178.14,178.13,12.37167991]
[1752856445319,46.30468397,178.14,178.13,11.65167991]
[1752856445618,51.91824633,178.14,178.13,11.65167991]
[1752856445800,52.63824633,178.14,178.13,11.65167991]
[1752856445993,52.63824633,178.14,178.12,0.03]
[1752856446192,17.50468397,178.13,178.12,0.03]
[1752856446418,17.50468397,178.13,178.12,11.68167991]
[1752856447296,17.50468397,178.13,178.12,0.03]
[1752856448106,23.11856147,178.13,178.12,0.03]
[1752856448931,23.11856147,178.13,178.12,11.68167991]
[1752856449514,22.39856147,178.13,178.12,11.68167991]
[1752856450010,51.91856147,178.13,178.12,11.68167991]
[1752856450230,52.63856147,178.13,178.12,0.03]
[1752856450730,16.78468397,178.13,178.12,11.68167991]
[1752856450935,46.30468397,178.13,178.12,0.03]
[1752856451240,16.78468397,178.13,178.12,11.68167991]
[1752856451439,46.30468397,178.13,178.12,11.68167991]
[1752856451741,46.30468397,178.13,178.12,12.40167991]
[1752856451943,46.30468397,178.13,178.12,11.68167991]
[1752856452609,52.63856147,178.13,178.12,11.68167991]
[1752856452951,52.63856147,178.13,178.12,0.03]
[1752856454757,23.11856147,178.13,178.12,0.03]
[1752856455044,52.63856147,178.13,178.12,0.03]
[1752856460022,16.78468397,178.13,178.12,11.6828852]
[1752856460349,46.28468397,178.13,178.12,11.6828852]
[1752856460856,16.78468397,178.13,178.12,12.3928852]
[1752856461543,16.78468397,178.13,178.12,11.6828852]
[1752856462929,16.78468397,178.13,178.12,12.3928852]
[1752856463532,16.78468397,178.13,178.12,11.6828852]
[1752856463967,22.39856147,178.13,178.12,11.6828852]
[1752856464141,23.09856147,178.13,178.12,11.6828852]
[1752856464650,23.09856147,178.13,178.12,0.03]
[1752856466284,16.78468397,178.13,178.12,11.6828852]
[1752856466425,16.78468397,178.13,178.12,1e-08]
[1752856466426,153.95144667,178.13,178.12,1e-08]
[1752856466625,16.78468397,178.12,178.11,1e-08]
[1752856466824,55.13756917,178.12,178.11,1e-08]
[1752856467261,60.75176184,178.12,178.11,1e-08]
[1752856468065,49.09887664,178.12,178.11,1e-08]
[1752856469560,78.59887664,178.12,178.11,1e-08]
[1752856470282,90.25176184,178.12,178.11,1e-08]
[1752856472352,78.59887664,178.12,178.11,1e-08]
[1752856472649,90.25176184,178.12,178.11,1e-08]
[1752856473769,42.78468397,178.1,178.08,0.03]
[1752856474073,26.0,178.06,178.03,0.2]
[1752856474273,46.28468397,178.05,178.03,0.2]
[1752856474583,46.98468397,178.05,178.03,0.2]
[1752856474882,28.43756917,178.04,178.0,0.2]
[1752856475090,28.43756917,178.04,178.0,11.8528852]
[1752856475091,16.78468397,178.02,178.0,11.8528852]
[1752856475254,46.28468397,178.01,178.0,0.2]
[1752856475450,46.28468397,178.01,178.0,11.8528852]
[1752856475876,42.78468397,177.99,177.98,0.03]
[1752856476046,72.28468397,177.99,177.98,11.6828852]
[1752856476244,16.78468397,177.99,177.98,11.6828852]
[1752856476649,46.28468397,177.99,177.98,11.6828852]
[1752856476951,72.98468397,177.99,177.98,1e-08]
[1752856477465,43.48468397,177.99,177.98,1e-08]
[1752856477679,43.48468397,177.99,177.98,7.16321723]
[1752856477976,49.10297713,177.99,177.98,7.16321723]
[1752856478143,78.60297713,177.99,177.98,7.16321723]
[1752856478342,49.10297713,177.99,177.98,7.16321723]
[1752856478543,78.60297713,177.99,177.98,7.16321723]
[1752856478955,78.60297713,177.99,177.95,7.16321722]
[1752856478956,16.78468397,177.98,177.95,7.16321722]
[1752856479178,16.78468397,177.95,177.94,0.2]
[1752856479348,16.78468397,177.95,177.94,0.91]
[1752856479349,46.28468397,177.95,177.94,0.91]
[1752856479880,29.5,177.96,177.94,0.91]
[1752856480053,26.0,178.0,177.95,0.71]
[1752856480253,5.61703083,178.03,177.95,0.71]
[1752856480254,6.31703083,178.03,177.95,0.71]
[1752856480463,29.5,178.02,177.95,0.71]
[1752856480665,29.5,178.02,178.01,7.16321722]
[1752856480864,29.5,178.02,178.01,14.32643444]
[1752856481177,29.5,178.03,178.01,12.36899308]
[1752856481354,29.5,178.03,178.02,11.65899308]
[1752856481549,4.47273859,178.08,178.02,12.36899308]
[1752856481749,4.47273859,178.08,178.07,11.65899308]
[1752856482176,10.78819239,178.08,178.01,7.0441]
[1752856482356,46.98468397,178.07,178.04,11.65899308]
[1752856482569,17.48468397,178.06,178.05,11.65899308]
[1752856482874,16.78468397,178.06,178.05,11.65899308]
[1752856483677,16.78468397,178.05,177.98,5.61850908]
[1752856483891,29.5,178.05,178.04,11.65899308]
[1752856484173,16.78468397,178.04,177.99,0.71]
[1752856484673,0.7,178.03,177.97,6.3341]
[1752856484975,16.78468397,178.02,177.97,12.66302173]
[1752856485152,16.78468397,178.02,177.98,0.71]
[1752856485358,16.78468397,178.02,177.99,0.71]
[1752856485573,16.78468397,178.02,178.01,11.65899308]
[1752856486254,22.40203033,178.02,178.01,11.65899308]
[1752856486648,23.06203033,178.02,178.01,11.65899308]
[1752856486849,23.06203033,178.02,177.99,0.03]
[1752856487059,23.06203033,178.02,178.01,11.65899308]
[1752856487261,52.56203033,178.02,178.01,11.65899308]
[1752856487675,16.78468397,178.0,177.99,0.03]
[1752856487883,51.90266149,178.0,177.99,0.03]
[1752856488051,52.56266149,178.0,177.99,11.68899308]
[1752856488492,51.90266149,178.0,177.99,11.68899308]
[1752856488653,22.40266149,178.0,177.99,11.68899308]
[1752856488855,51.90266149,178.0,177.99,11.68899308]
[1752856489156,52.56266149,178.0,177.99,11.68899308]
[1752856491183,52.56266149,178.0,177.99,1e-08]
[1752856491349,16.78468397,177.96,177.95,0.03]
[1752856491550,16.78468397,177.96,177.95,11.68899308]
[1752856491551,46.28468397,177.96,177.95,11.68899308]
[1752856491983,51.90392424,177.96,177.95,11.68899308]
[1752856492352,42.78468397,177.94,177.93,1e-08]
[1752856492579,42.78468397,177.94,177.93,11.65899309]
[1752856492753,72.94468397,177.94,177.93,11.65899309]
[1752856492955,16.78468397,177.89,177.81,0.1]
[1752856493154,16.78468397,177.87,177.84,11.65899308]
[1752856493400,16.78468397,177.85,177.81,0.1]
[1752856493692,16.78468397,177.83,177.81,0.1]
[1752856493872,51.90834834,177.82,177.81,0.1]
[1752856494579,34.17052552,177.9,177.81,0.1]
[1752856494580,10.0177563,177.89,177.81,6.38398065]
[1752856494764,16.78468397,177.9,177.88,11.65899308]
[1752856494963,16.78468397,177.9,177.89,11.65899308]
[1752856495176,17.44468397,177.9,177.81,5.72398065]
[1752856495351,28.44367705,177.87,177.81,0.1]
[1752856495556,16.78468397,177.87,177.86,11.65899308]
[1752856495756,46.28468397,177.87,177.86,11.65899308]
[1752856496205,52.56680953,177.87,177.81,0.1]
[1752856496494,16.78468397,177.84,177.83,11.65899308]
[1752856496706,46.94468397,177.84,177.83,11.65899308]
[1752856497300,42.78468397,177.82,177.81,0.1]
[1752856497454,72.28468397,177.82,177.81,0.1]
[1752856497775,72.94468397,177.82,177.81,0.1]
[1752856497996,78.56834834,177.82,177.81,0.1]
[1752856498566,90.22734142,177.82,177.81,0.1]
[1752856498767,72.28468397,177.82,177.81,11.75899308]
[1752856498988,46.30468397,177.82,177.81,12.41899308]
[1752856499295,16.78468397,177.82,177.81,12.41899308]
[1752856499672,16.78468397,177.82,177.81,11.75899308]
[1752856500161,46.30468397,177.82,177.81,11.75899308]
[1752856500707,90.24734142,177.82,177.81,0.1]
[1752856500879,94.40231551,177.82,177.81,0.1]
[1752856501195,94.40231551,177.82,177.72,6.28680688]
[1752856501196,42.78468397,177.78,177.72,0.66]
[1752856501512,16.78468397,177.76,177.7,11.65899308]
[1752856501665,16.78468397,177.74,177.72,11.65899308]
[1752856501863,26.0,177.78,177.73,12.31899308]
[1752856502069,16.78468397,177.78,177.77,11.65899308]
[1752856502291,16.78468397,177.78,177.77,17.94423918]
[1752856502608,16.78468397,177.78,177.77,12.31899308]
[1752856502767,16.78468397,177.78,177.77,0.66]
[1752856502968,6.39847894,177.79,177.77,17.94410762]
[1752856503181,23.18316291,177.79,177.78,12.31899308]
[1752856503389,23.18316291,177.79,177.78,11.65899308]
[1752856503597,16.78468397,177.78,177.75,0.66]
[1752856503817,16.78468397,177.78,177.77,11.65899308]
[1752856503966,17.44468397,177.78,177.73,0.66]
[1752856504309,16.78468397,177.76,177.73,11.65899308]
[1752856504464,16.78468397,177.74,177.73,11.65899308]
[1752856504670,16.78468397,177.74,177.73,12.31899308]
[1752856504894,16.78468397,177.76,177.73,12.31899308]
[1752856505099,0.66,177.84,177.75,23.31798616]
[1752856505399,16.78468397,177.78,177.76,12.31899308]
[1752856505695,16.78468397,177.78,177.77,0.66]
[1752856506578,16.78468397,177.78,177.77,12.31899308]
[1752856506796,0.66,177.87,177.77,17.94423918]
[1752856506996,16.78468397,177.81,177.78,11.65899308]
[1752856507190,16.78468397,177.81,177.78,12.31899308]
[1752856507396,0.66,177.87,177.78,12.31899308]
[1752856507579,50.45958535,177.86,177.77,12.2838461]
[1752856507768,16.78468397,177.84,177.79,0.66]
[1752856507972,16.78468397,177.87,177.79,0.66]
[1752856508184,0.06,177.85,177.8,5.62429696]
[1752856508388,0.06,177.85,177.81,0.66]
[1752856508590,0.06,177.85,177.82,0.66]
[1752856508780,0.06,177.85,177.83,0.66]
[1752856508988,0.06,177.85,177.84,11.65899308]
[1752856509395,0.06,177.85,177.84,12.31899308]
[1752856509602,0.06,177.85,177.84,11.65899308]
[1752856509813,0.06,177.85,177.81,0.66]
[1752856509996,0.06,177.85,177.84,11.65899308]
[1752856510199,0.06,177.85,177.82,0.66]
[1752856510379,0.06,177.85,177.84,11.65899308]
[1752856513108,0.06,177.85,177.8,0.66]
[1752856513294,16.78468397,177.83,177.77,12.94371965]
[1752856513491,16.78468397,177.83,177.81,11.65899308]
[1752856513689,16.78468397,177.83,177.74,1.5441]
[1752856513690,16.78468397,177.81,177.74,2.2041]
[1752856513899,16.78468397,177.75,177.73,0.03]
[1752856514091,16.78468397,177.74,177.73,0.03]
[1752856514409,52.59087953,177.74,177.73,0.03]
[1752856514612,56.73124026,177.74,177.73,0.03]
[1752856514908,68.39023334,177.74,177.73,0.03]
[1752856515215,1.5531,177.73,177.69,0.03]
[1752856515386,4.14036073,177.72,177.69,0.03]
[1752856515581,28.44367705,177.7,177.69,0.03]
[1752856515797,20.9250447,177.7,177.69,11.68899308]
[1752856516086,20.9250447,177.7,177.69,0.7]
[1752856516282,16.78468397,177.7,177.69,11.68899308]
[1752856516594,64.27113906,177.7,177.69,0.03]
[1752856516790,90.27113906,177.7,177.69,0.03]
[1752856516989,68.40862326,177.7,177.69,1e-08]
[1752856517207,42.78468397,177.66,177.59,11.65899308]
[1752856517404,42.78468397,177.66,177.56,0.67]
[1752856517405,16.78468397,177.63,177.6,11.65899308]
[1752856517721,16.78468397,177.61,177.54,0.67]
[1752856518088,16.78468397,177.59,177.53,6.5638]